[Event "*** SCC Grand Prix: Titled Tuesday Blitz"]
[Site "Chess.com"]
[Date "2020.08.11"]
[Round "7"]
[White "Thipsay"]
[Black "DinaBelenkaya"]
[Result "1-0"]
[WhiteElo "2485"]
[BlackElo "2342"]
[TimeControl "180+1"]
[EndTime "11:16:13 PDT"]
[Termination "Thipsay won by checkmate"]

1. e4 {[%clk 0:03:00.9]} 1... d5 {[%clk 0:02:58.1]} 2. exd5 {[%clk 0:03:00.2]}
2... Qxd5 {[%clk 0:02:59]} 3. Nc3 {[%clk 0:03:00.3]} 3... Qa5 {[%clk 0:02:59.1]}
4. b4 {[%clk 0:02:59.9]} 4... Qxb4 {[%clk 0:02:58.8]} 5. Rb1 {[%clk 0:03:00.2]}
5... Qd6 {[%clk 0:02:56.8]} 6. Nf3 {[%clk 0:03:00.1]} 6... c6 {[%clk 0:02:51.1]}
7. Bc4 {[%clk 0:02:58]} 7... Nf6 {[%clk 0:02:50]} 8. O-O {[%clk 0:02:56.9]} 8...
e6 {[%clk 0:02:31.8]} 9. a4 {[%clk 0:02:56.6]} 9... Be7 {[%clk 0:02:30.3]} 10.
Rb3 {[%clk 0:02:56.4]} 10... O-O {[%clk 0:02:27.4]} 11. Qe2 {[%clk 0:02:56.5]}
11... b6 {[%clk 0:02:14.8]} 12. Rd1 {[%clk 0:02:49.8]} 12... Bb7 {[%clk
0:02:11.5]} 13. d4 {[%clk 0:02:45]} 13... Qc7 {[%clk 0:02:11]} 14. Ne5 {[%clk
0:02:43]} 14... Nbd7 {[%clk 0:02:00]} 15. Bf4 {[%clk 0:02:42.4]} 15... Bd6
{[%clk 0:01:59.6]} 16. Rd3 {[%clk 0:02:30.3]} 16... Rae8 {[%clk 0:01:20.1]} 17.
Rg3 {[%clk 0:02:28.9]} 17... Kh8 {[%clk 0:01:14.8]} 18. Rb1 {[%clk 0:02:22.8]}
18... c5 {[%clk 0:01:13.4]} 19. Nb5 {[%clk 0:02:21.7]} 19... Qb8 {[%clk
0:01:02.4]} 20. Nxd7 {[%clk 0:02:21.3]} 20... Bxf4 {[%clk 0:00:55.9]} 21. Nxb8
{[%clk 0:02:20.3]} 21... Bxg3 {[%clk 0:00:53.5]} 22. hxg3 {[%clk 0:02:19.1]}
22... Rxb8 {[%clk 0:00:53.6]} 23. Nd6 {[%clk 0:02:18.6]} 23... Bc6 {[%clk
0:00:50.7]} 24. dxc5 {[%clk 0:02:18.3]} 24... Bxa4 {[%clk 0:00:42.6]} 25. cxb6
{[%clk 0:02:15.7]} 25... axb6 {[%clk 0:00:43.5]} 26. Ra1 {[%clk 0:02:09.7]}
26... Bc6 {[%clk 0:00:41.9]} 27. Ra7 {[%clk 0:02:05.9]} 27... Nd7 {[%clk
0:00:41.7]} 28. Bb5 {[%clk 0:01:58.2]} 28... Bxb5 {[%clk 0:00:25.8]} 29. Qxb5
{[%clk 0:01:57.9]} 29... Nc5 {[%clk 0:00:26.7]} 30. Nxf7+ {[%clk 0:01:49.2]}
30... Kg8 {[%clk 0:00:27.3]} 31. Ne5 {[%clk 0:01:49.1]} 31... Rf5 {[%clk
0:00:22.5]} 32. Qb2 {[%clk 0:01:44.6]} 32... Ne4 {[%clk 0:00:18.6]} 33. Nc6
{[%clk 0:01:38.7]} 33... Rbf8 {[%clk 0:00:03.9]} 34. Qxg7# {[%clk 0:01:37.2]}
1-0

[Event "*** SCC Grand Prix: Titled Tuesday Blitz"]
[Site "Chess.com"]
[Date "2020.08.11"]
[Round "7"]
[White "Xeslu"]
[Black "Ariadna_Atreides"]
[Result "1-0"]
[WhiteElo "2303"]
[BlackElo "2048"]
[TimeControl "180+1"]
[EndTime "11:16:16 PDT"]
[Termination "Xeslu won by resignation"]

1. e4 {[%clk 0:03:00.9]} 1... c5 {[%clk 0:02:49.6]} 2. Nf3 {[%clk 0:03:00.6]}
2... d6 {[%clk 0:02:48.8]} 3. Bc4 {[%clk 0:02:59.7]} 3... e6 {[%clk 0:02:44.4]}
4. d3 {[%clk 0:02:59]} 4... a6 {[%clk 0:02:39]} 5. c3 {[%clk 0:02:58.1]} 5...
Nf6 {[%clk 0:02:37.5]} 6. Bb3 {[%clk 0:02:57.8]} 6... Be7 {[%clk 0:02:35.2]} 7.
O-O {[%clk 0:02:57.8]} 7... O-O {[%clk 0:02:24.5]} 8. h3 {[%clk 0:02:55.8]} 8...
b5 {[%clk 0:02:22.3]} 9. Re1 {[%clk 0:02:55.8]} 9... Bb7 {[%clk 0:02:21.5]} 10.
Nbd2 {[%clk 0:02:55.8]} 10... Nbd7 {[%clk 0:02:17.9]} 11. Bc2 {[%clk 0:02:54.9]}
11... Rc8 {[%clk 0:02:01.3]} 12. Nf1 {[%clk 0:02:54.8]} 12... Qc7 {[%clk
0:01:47.9]} 13. Ng3 {[%clk 0:02:53.9]} 13... Rfe8 {[%clk 0:01:44.1]} 14. Bf4
{[%clk 0:02:52.6]} 14... e5 {[%clk 0:01:41]} 15. Bg5 {[%clk 0:02:50]} 15... h6
{[%clk 0:01:38.1]} 16. Be3 {[%clk 0:02:37.3]} 16... d5 {[%clk 0:01:33]} 17. Nf5
{[%clk 0:02:32]} 17... Kh7 {[%clk 0:01:10.8]} 18. Nh2 {[%clk 0:02:11.3]} 18...
Bf8 {[%clk 0:01:06.8]} 19. Qf3 {[%clk 0:02:09.8]} 19... d4 {[%clk 0:00:58.2]}
20. Bd2 {[%clk 0:02:08.2]} 20... dxc3 {[%clk 0:00:52]} 21. bxc3 {[%clk
0:02:06.1]} 21... Qb6 {[%clk 0:00:47.2]} 22. Rab1 {[%clk 0:01:58.7]} 22... c4
{[%clk 0:00:44.5]} 23. a4 {[%clk 0:01:47.2]} 23... cxd3 {[%clk 0:00:38]} 24.
Bxd3 {[%clk 0:01:47.3]} 24... Nc5 {[%clk 0:00:32.4]} 25. Be3 {[%clk 0:01:42.5]}
25... Qc6 {[%clk 0:00:16.8]} 26. axb5 {[%clk 0:01:38.4]} 26... axb5 {[%clk
0:00:15.2]} 27. Bxb5 {[%clk 0:01:38.4]} 27... Qxe4 {[%clk 0:00:13.8]} 28. Qxe4
{[%clk 0:01:37.1]} 28... Ncxe4 {[%clk 0:00:13.4]} 29. Bxe8 {[%clk 0:01:37.7]}
29... Nxe8 {[%clk 0:00:12]} 30. Rxb7 {[%clk 0:01:36.9]} 30... Nxc3 {[%clk
0:00:09.8]} 31. Rxf7 {[%clk 0:01:30.5]} 31... Kg6 {[%clk 0:00:08.4]} 32. Rxf8
{[%clk 0:01:29.8]} 1-0

[Event "*** SCC Grand Prix: Titled Tuesday Blitz"]
[Site "Chess.com"]
[Date "2020.08.11"]
[Round "7"]
[White "paulrusan"]
[Black "KyronGriffith"]
[Result "0-1"]
[WhiteElo "2205"]
[BlackElo "2348"]
[TimeControl "180+1"]
[EndTime "11:16:18 PDT"]
[Termination "KyronGriffith won by resignation"]

1. e4 {[%clk 0:03:00.9]} 1... c6 {[%clk 0:02:59.8]} 2. d4 {[%clk 0:02:59.7]}
2... d5 {[%clk 0:03:00.3]} 3. e5 {[%clk 0:02:59.7]} 3... Bf5 {[%clk 0:02:58.8]}
4. h4 {[%clk 0:02:59.3]} 4... h5 {[%clk 0:02:58.3]} 5. Bg5 {[%clk 0:02:57.7]}
5... Qb6 {[%clk 0:02:57.1]} 6. Bd3 {[%clk 0:02:57.4]} 6... Bxd3 {[%clk
0:02:57.7]} 7. Qxd3 {[%clk 0:02:57.5]} 7... Qa6 {[%clk 0:02:58.4]} 8. Qxa6
{[%clk 0:02:56]} 8... Nxa6 {[%clk 0:02:59.3]} 9. c3 {[%clk 0:02:56.2]} 9... e6
{[%clk 0:02:54]} 10. Ne2 {[%clk 0:02:54.6]} 10... Ne7 {[%clk 0:02:48.9]} 11. Nd2
{[%clk 0:02:53.3]} 11... Nf5 {[%clk 0:02:45.1]} 12. g3 {[%clk 0:02:47.4]} 12...
c5 {[%clk 0:02:44.9]} 13. Nf3 {[%clk 0:02:42.3]} 13... Kd7 {[%clk 0:02:37.4]}
14. O-O-O {[%clk 0:02:37.3]} 14... cxd4 {[%clk 0:02:31.8]} 15. Nexd4 {[%clk
0:02:35.5]} 15... Nxd4 {[%clk 0:02:25.4]} 16. Nxd4 {[%clk 0:02:35.3]} 16... Rc8
{[%clk 0:02:23.5]} 17. Kb1 {[%clk 0:02:20.2]} 17... Bc5 {[%clk 0:02:21]} 18. f4
{[%clk 0:02:12.2]} 18... Bxd4 {[%clk 0:02:14.4]} 19. Rxd4 {[%clk 0:02:09]} 19...
b5 {[%clk 0:02:07.6]} 20. f5 {[%clk 0:02:06.3]} 20... Rc4 {[%clk 0:02:00.6]} 21.
Rf1 {[%clk 0:01:50.2]} 21... Nc5 {[%clk 0:01:47.5]} 22. fxe6+ {[%clk 0:01:43.8]}
22... Kxe6 {[%clk 0:01:48.4]} 23. Rdf4 {[%clk 0:01:38]} 23... Rxf4 {[%clk
0:01:47.3]} 24. gxf4 {[%clk 0:01:38]} 24... g6 {[%clk 0:01:46.1]} 25. Bf6 {[%clk
0:01:14.5]} 25... Rc8 {[%clk 0:01:43.8]} 26. f5+ {[%clk 0:01:14.1]} 26... gxf5
{[%clk 0:01:43.8]} 27. Rg1 {[%clk 0:01:13.5]} 27... Ne4 {[%clk 0:01:40.3]} 28.
Rg7 {[%clk 0:00:54.3]} 28... Nxf6 {[%clk 0:01:26.9]} 29. exf6 {[%clk 0:00:54]}
29... Kxf6 {[%clk 0:01:27.8]} 30. Rg5 {[%clk 0:00:53.6]} 30... Re8 {[%clk
0:01:16.3]} 31. Rxh5 {[%clk 0:00:50.7]} 31... f4 {[%clk 0:01:16.6]} 32. Rg5
{[%clk 0:00:45.4]} 32... f3 {[%clk 0:01:16.7]} 33. Rg4 {[%clk 0:00:41.9]} 33...
Kf5 {[%clk 0:01:16.2]} 34. Rg7 {[%clk 0:00:31.8]} 34... f6 {[%clk 0:01:13.7]}
35. Rg1 {[%clk 0:00:25.2]} 35... f2 {[%clk 0:01:13.8]} 36. Rf1 {[%clk
0:00:24.5]} 36... Re1+ {[%clk 0:01:14.2]} 0-1

[Event "*** SCC Grand Prix: Titled Tuesday Blitz"]
[Site "Chess.com"]
[Date "2020.08.11"]
[Round "7"]
[White "Korona_91"]
[Black "UmbertoConcelli"]
[Result "0-1"]
[WhiteElo "2491"]
[BlackElo "2699"]
[TimeControl "180+1"]
[EndTime "11:16:20 PDT"]
[Termination "UmbertoConcelli won by checkmate"]

1. e4 {[%clk 0:03:00.9]} 1... c5 {[%clk 0:02:57.8]} 2. Nf3 {[%clk 0:03:00.3]}
2... d6 {[%clk 0:02:58.1]} 3. Bb5+ {[%clk 0:02:59.5]} 3... Bd7 {[%clk
0:02:56.8]} 4. c4 {[%clk 0:02:58.9]} 4... Nc6 {[%clk 0:02:48.9]} 5. Nc3 {[%clk
0:02:57.7]} 5... Nf6 {[%clk 0:02:44.1]} 6. d4 {[%clk 0:02:57.5]} 6... cxd4
{[%clk 0:02:39.6]} 7. Nxd4 {[%clk 0:02:58]} 7... g6 {[%clk 0:02:39.4]} 8. O-O
{[%clk 0:02:56.5]} 8... Bg7 {[%clk 0:02:39]} 9. Be3 {[%clk 0:02:54.1]} 9... O-O
{[%clk 0:02:37.9]} 10. f3 {[%clk 0:02:54.1]} 10... Rc8 {[%clk 0:02:36.6]} 11.
Bxc6 {[%clk 0:02:54.1]} 11... bxc6 {[%clk 0:02:33.3]} 12. c5 {[%clk 0:02:53.9]}
12... Rb8 {[%clk 0:02:27.2]} 13. Nb3 {[%clk 0:02:51.8]} 13... d5 {[%clk
0:02:24.5]} 14. e5 {[%clk 0:02:45.1]} 14... Ne8 {[%clk 0:02:23.7]} 15. f4 {[%clk
0:02:41.7]} 15... Nc7 {[%clk 0:02:21.7]} 16. Qd2 {[%clk 0:02:39.3]} 16... Rxb3
{[%clk 0:02:02.2]} 17. axb3 {[%clk 0:02:37.4]} 17... Qb8 {[%clk 0:02:03.1]} 18.
b4 {[%clk 0:02:25.6]} 18... a6 {[%clk 0:02:01.5]} 19. Ne2 {[%clk 0:02:17.7]}
19... Qb7 {[%clk 0:01:48.7]} 20. Nd4 {[%clk 0:02:09.8]} 20... Rb8 {[%clk
0:01:48.9]} 21. Ra4 {[%clk 0:02:09.9]} 21... Nb5 {[%clk 0:01:45.8]} 22. Nxb5
{[%clk 0:02:04.2]} 22... Qxb5 {[%clk 0:01:38.1]} 23. Rfa1 {[%clk 0:02:03.4]}
23... Bc8 {[%clk 0:01:37.7]} 24. Kf2 {[%clk 0:02:00.4]} 24... h5 {[%clk
0:01:37.1]} 25. Qe2 {[%clk 0:01:58.2]} 25... Qb7 {[%clk 0:01:32.8]} 26. Bd4
{[%clk 0:01:57.8]} 26... Qd7 {[%clk 0:01:29.6]} 27. Qd3 {[%clk 0:01:49.2]} 27...
Qg4 {[%clk 0:01:27.5]} 28. Qe3 {[%clk 0:01:40.4]} 28... Bh6 {[%clk 0:01:25.9]}
29. g3 {[%clk 0:01:40.3]} 29... h4 {[%clk 0:01:25.8]} 30. e6 {[%clk 0:01:35.1]}
30... f6 {[%clk 0:01:21.5]} 31. Rg1 {[%clk 0:01:11.8]} 31... h3 {[%clk
0:01:20.4]} 32. Rga1 {[%clk 0:01:10.9]} 32... Qf5 {[%clk 0:01:16]} 33. R1a3
{[%clk 0:00:56.7]} 33... g5 {[%clk 0:01:10.9]} 34. Qf3 {[%clk 0:00:54.3]} 34...
gxf4 {[%clk 0:01:02.2]} 35. gxf4 {[%clk 0:00:54.5]} 35... Bxf4 {[%clk
0:01:00.4]} 36. Qxh3 {[%clk 0:00:48.7]} 36... Be3+ {[%clk 0:01:00.2]} 37. Kg2
{[%clk 0:00:48.1]} 37... Qf2+ {[%clk 0:00:58.1]} 38. Kh1 {[%clk 0:00:47.2]}
38... Qg1# {[%clk 0:00:59]} 0-1

[Event "*** SCC Grand Prix: Titled Tuesday Blitz"]
[Site "Chess.com"]
[Date "2020.08.11"]
[Round "7"]
[White "FeketeBarika"]
[Black "mortngabriel"]
[Result "0-1"]
[WhiteElo "2193"]
[BlackElo "2456"]
[TimeControl "180+1"]
[EndTime "11:16:23 PDT"]
[Termination "mortngabriel won by resignation"]

1. Nf3 {[%clk 0:03:00.9]} 1... c5 {[%clk 0:02:57.9]} 2. g3 {[%clk 0:03:01.8]}
2... Nc6 {[%clk 0:02:56.5]} 3. Bg2 {[%clk 0:03:02.1]} 3... e5 {[%clk 0:02:56.9]}
4. c4 {[%clk 0:03:02.2]} 4... g6 {[%clk 0:02:54.7]} 5. Nc3 {[%clk 0:03:00.2]}
5... Bg7 {[%clk 0:02:55]} 6. O-O {[%clk 0:03:00.5]} 6... Nge7 {[%clk 0:02:55]}
7. d3 {[%clk 0:03:00.3]} 7... O-O {[%clk 0:02:54.9]} 8. Rb1 {[%clk 0:02:59.4]}
8... h6 {[%clk 0:02:52.1]} 9. a3 {[%clk 0:02:59]} 9... a5 {[%clk 0:02:52.7]} 10.
Ne1 {[%clk 0:02:58.1]} 10... d6 {[%clk 0:02:47.5]} 11. Nc2 {[%clk 0:02:58.3]}
11... Nd4 {[%clk 0:02:35.9]} 12. Ne3 {[%clk 0:02:54.4]} 12... f5 {[%clk
0:02:32.4]} 13. Ned5 {[%clk 0:02:53.6]} 13... Nec6 {[%clk 0:02:30.8]} 14. e3
{[%clk 0:02:52.9]} 14... Ne6 {[%clk 0:02:30.7]} 15. b4 {[%clk 0:02:50.6]} 15...
axb4 {[%clk 0:02:30]} 16. axb4 {[%clk 0:02:51.5]} 16... g5 {[%clk 0:02:20.7]}
17. b5 {[%clk 0:02:45.7]} 17... Ne7 {[%clk 0:02:20.4]} 18. f4 {[%clk 0:02:43.4]}
18... exf4 {[%clk 0:02:14.2]} 19. gxf4 {[%clk 0:02:43.2]} 19... Ng6 {[%clk
0:02:08.9]} 20. Bb2 {[%clk 0:02:17.3]} 20... gxf4 {[%clk 0:02:06.5]} 21. Qh5
{[%clk 0:02:11.5]} 21... Qg5 {[%clk 0:02:00.6]} 22. Qxg6 {[%clk 0:02:03.6]}
22... Qxg6 {[%clk 0:01:56]} 23. Ne7+ {[%clk 0:02:03.7]} 23... Kh7 {[%clk
0:01:55.6]} 24. Nxg6 {[%clk 0:02:04.3]} 24... Kxg6 {[%clk 0:01:56.5]} 25. exf4
{[%clk 0:02:00.2]} 25... Nd4 {[%clk 0:01:45.3]} 26. Nd5 {[%clk 0:01:58.5]} 26...
Kf7 {[%clk 0:01:39.5]} 27. Nb6 {[%clk 0:01:48.2]} 27... Ra2 {[%clk 0:01:38.8]}
28. Nxc8 {[%clk 0:01:39.2]} 28... Rxc8 {[%clk 0:01:38]} 29. Bxb7 {[%clk
0:01:38.7]} 29... Re8 {[%clk 0:01:36.9]} 30. Bd5+ {[%clk 0:01:38]} 30... Kf8
{[%clk 0:01:35.4]} 31. Kh1 {[%clk 0:01:37]} 31... Re2 {[%clk 0:01:33]} 32. b6
{[%clk 0:01:01.5]} 32... Raxb2 {[%clk 0:01:26.3]} 33. b7 {[%clk 0:00:54.6]}
33... Rxh2+ {[%clk 0:01:13.3]} 34. Kg1 {[%clk 0:00:54.1]} 34... Nf3+ {[%clk
0:01:13.8]} 35. Bxf3 {[%clk 0:00:33.4]} 35... Bd4+ {[%clk 0:01:13.1]} 36. Rf2
{[%clk 0:00:33.5]} 36... Rxb1+ {[%clk 0:01:05.9]} 37. Kxh2 {[%clk 0:00:33.5]}
37... Bxf2 {[%clk 0:01:06.2]} 0-1

[Event "*** SCC Grand Prix: Titled Tuesday Blitz"]
[Site "Chess.com"]
[Date "2020.08.11"]
[Round "7"]
[White "Fins0905"]
[Black "Aguiar94"]
[Result "1-0"]
[WhiteElo "2636"]
[BlackElo "2449"]
[TimeControl "180+1"]
[EndTime "11:16:24 PDT"]
[Termination "Fins0905 won by checkmate"]

1. Nf3 {[%clk 0:03:00.9]} 1... d5 {[%clk 0:02:59.7]} 2. d4 {[%clk 0:03:00]} 2...
Nf6 {[%clk 0:02:59.8]} 3. c4 {[%clk 0:03:00.2]} 3... e6 {[%clk 0:02:52.8]} 4.
Bg5 {[%clk 0:02:59.2]} 4... h6 {[%clk 0:02:49.2]} 5. Bxf6 {[%clk 0:02:57.9]}
5... Qxf6 {[%clk 0:02:50.1]} 6. Nc3 {[%clk 0:02:58.3]} 6... Bb4 {[%clk
0:02:46.3]} 7. Qa4+ {[%clk 0:02:53.9]} 7... Nc6 {[%clk 0:02:45.8]} 8. e3 {[%clk
0:02:54.2]} 8... O-O {[%clk 0:02:45.3]} 9. Rc1 {[%clk 0:02:52.4]} 9... a6 {[%clk
0:02:45]} 10. Qc2 {[%clk 0:02:45.5]} 10... dxc4 {[%clk 0:02:26.7]} 11. Bxc4
{[%clk 0:02:43.7]} 11... b5 {[%clk 0:02:27]} 12. Be2 {[%clk 0:02:23.6]} 12...
Bb7 {[%clk 0:02:26.8]} 13. O-O {[%clk 0:02:22.9]} 13... Rac8 {[%clk 0:02:25.9]}
14. Ne4 {[%clk 0:02:20.1]} 14... Qe7 {[%clk 0:02:24.3]} 15. Nc5 {[%clk
0:02:17.4]} 15... Bxc5 {[%clk 0:02:23.8]} 16. Qxc5 {[%clk 0:02:18.3]} 16... Qxc5
{[%clk 0:02:23.3]} 17. Rxc5 {[%clk 0:02:19.2]} 17... Nb4 {[%clk 0:02:23.3]} 18.
a3 {[%clk 0:02:15.3]} 18... Nd5 {[%clk 0:02:16.1]} 19. Rfc1 {[%clk 0:02:14.5]}
19... Rfd8 {[%clk 0:02:07.9]} 20. Ne5 {[%clk 0:02:11.1]} 20... f6 {[%clk
0:02:07.2]} 21. Nc6 {[%clk 0:02:06.8]} 21... Rd7 {[%clk 0:02:03.5]} 22. Bf3
{[%clk 0:01:51.9]} 22... Kf7 {[%clk 0:01:58.5]} 23. g4 {[%clk 0:01:20.5]} 23...
Rd6 {[%clk 0:01:55.9]} 24. Na5 {[%clk 0:01:17.6]} 24... Ba8 {[%clk 0:01:53.8]}
25. e4 {[%clk 0:00:53.3]} 25... Nb6 {[%clk 0:01:52.7]} 26. Rxc7+ {[%clk
0:00:52.1]} 26... Rxc7 {[%clk 0:01:52.1]} 27. Rxc7+ {[%clk 0:00:53]} 27... Kg6
{[%clk 0:01:50.9]} 28. Nb3 {[%clk 0:00:42]} 28... Rd8 {[%clk 0:01:42.2]} 29. Nc5
{[%clk 0:00:36]} 29... Rd6 {[%clk 0:01:31.4]} 30. h4 {[%clk 0:00:30.3]} 30... h5
{[%clk 0:01:21.1]} 31. gxh5+ {[%clk 0:00:29.9]} 31... Kh6 {[%clk 0:01:21.5]} 32.
Re7 {[%clk 0:00:23.3]} 32... Rxd4 {[%clk 0:01:17.3]} 33. Rxe6 {[%clk 0:00:23.3]}
33... Nc4 {[%clk 0:01:16.1]} 34. Re8 {[%clk 0:00:22]} 34... Ne5 {[%clk
0:01:14.7]} 35. Rh8# {[%clk 0:00:20.8]} 1-0

[Event "*** SCC Grand Prix: Titled Tuesday Blitz"]
[Site "Chess.com"]
[Date "2020.08.11"]
[Round "7"]
[White "Ural_bogatyr"]
[Black "Panterov"]
[Result "1-0"]
[WhiteElo "2356"]
[BlackElo "2210"]
[TimeControl "180+1"]
[EndTime "11:16:25 PDT"]
[Termination "Ural_bogatyr won on time"]

1. e4 {[%clk 0:03:00.9]} 1... e6 {[%clk 0:02:54.2]} 2. d4 {[%clk 0:03:00.1]}
2... d5 {[%clk 0:02:54.2]} 3. Bd3 {[%clk 0:03:00.2]} 3... Nf6 {[%clk 0:02:51.5]}
4. e5 {[%clk 0:03:00.2]} 4... Nfd7 {[%clk 0:02:51.6]} 5. c3 {[%clk 0:03:01.1]}
5... c5 {[%clk 0:02:51.7]} 6. f4 {[%clk 0:03:02]} 6... Nc6 {[%clk 0:02:50.7]} 7.
Nf3 {[%clk 0:03:02.2]} 7... Qb6 {[%clk 0:02:50.7]} 8. Bc2 {[%clk 0:03:00.7]}
8... cxd4 {[%clk 0:02:50]} 9. cxd4 {[%clk 0:03:01.6]} 9... Qa6 {[%clk
0:02:34.5]} 10. Nc3 {[%clk 0:02:55.7]} 10... Bb4 {[%clk 0:02:33.4]} 11. a3
{[%clk 0:02:46.8]} 11... O-O {[%clk 0:02:27.4]} 12. Bd3 {[%clk 0:02:38.6]} 12...
Qa5 {[%clk 0:02:17.9]} 13. O-O {[%clk 0:02:07.2]} 13... Bxc3 {[%clk 0:02:15.6]}
14. bxc3 {[%clk 0:02:08.1]} 14... g6 {[%clk 0:02:13.9]} 15. Bd2 {[%clk
0:02:01.9]} 15... Qc7 {[%clk 0:02:13.2]} 16. g4 {[%clk 0:02:00]} 16... Na5
{[%clk 0:02:08.7]} 17. f5 {[%clk 0:01:56.2]} 17... Nc4 {[%clk 0:02:05.7]} 18.
Ng5 {[%clk 0:01:46.8]} 18... Nxd2 {[%clk 0:01:55.5]} 19. Qxd2 {[%clk 0:01:47.7]}
19... exf5 {[%clk 0:01:55.2]} 20. gxf5 {[%clk 0:01:44.9]} 20... Nxe5 {[%clk
0:01:55.3]} 21. dxe5 {[%clk 0:01:37.6]} 21... Qxe5 {[%clk 0:01:55.1]} 22. Rae1
{[%clk 0:01:34.2]} 22... Qd6 {[%clk 0:01:53.1]} 23. fxg6 {[%clk 0:01:31.2]}
23... hxg6 {[%clk 0:01:51.7]} 24. Qf2 {[%clk 0:01:14.3]} 24... Qxa3 {[%clk
0:01:24.7]} 25. Qh4 {[%clk 0:01:08.7]} 1-0

[Event "*** SCC Grand Prix: Titled Tuesday Blitz"]
[Site "Chess.com"]
[Date "2020.08.11"]
[Round "7"]
[White "Bigfish1995"]
[Black "albano87"]
[Result "0-1"]
[WhiteElo "2941"]
[BlackElo "2565"]
[TimeControl "180+1"]
[EndTime "11:16:34 PDT"]
[Termination "albano87 won by resignation"]

1. d4 {[%clk 0:02:53.1]} 1... d5 {[%clk 0:02:59.2]} 2. c4 {[%clk 0:02:53]} 2...
e6 {[%clk 0:02:59.8]} 3. Nf3 {[%clk 0:02:53.3]} 3... Nf6 {[%clk 0:03:00.2]} 4.
g3 {[%clk 0:02:53.9]} 4... Be7 {[%clk 0:02:50.6]} 5. Bg2 {[%clk 0:02:54.3]} 5...
O-O {[%clk 0:02:49.7]} 6. O-O {[%clk 0:02:54.6]} 6... dxc4 {[%clk 0:02:48.3]} 7.
Qc2 {[%clk 0:02:53.3]} 7... a6 {[%clk 0:02:47.8]} 8. a4 {[%clk 0:02:51.7]} 8...
Bd7 {[%clk 0:02:43.9]} 9. Qxc4 {[%clk 0:02:51.9]} 9... Bc6 {[%clk 0:02:36.4]}
10. Nc3 {[%clk 0:02:49.3]} 10... b5 {[%clk 0:02:31.2]} 11. Qd3 {[%clk
0:02:45.8]} 11... b4 {[%clk 0:02:29.7]} 12. Nd1 {[%clk 0:02:45.3]} 12... Be4
{[%clk 0:02:24.8]} 13. Qc4 {[%clk 0:02:45.4]} 13... Nc6 {[%clk 0:02:22.4]} 14.
Bg5 {[%clk 0:02:32.1]} 14... Na5 {[%clk 0:02:14.8]} 15. Qa2 {[%clk 0:02:27.7]}
15... b3 {[%clk 0:02:10.6]} 16. Bxf6 {[%clk 0:02:23.3]} 16... bxa2 {[%clk
0:02:07.9]} 17. Bxe7 {[%clk 0:02:23.2]} 17... Qxe7 {[%clk 0:02:07]} 18. Nc3
{[%clk 0:02:22]} 18... Bb7 {[%clk 0:01:57.4]} 19. Rxa2 {[%clk 0:02:20.1]} 19...
c5 {[%clk 0:01:55.1]} 20. dxc5 {[%clk 0:02:01.6]} 20... Qxc5 {[%clk 0:01:56]}
21. Raa1 {[%clk 0:01:54.4]} 21... Bxf3 {[%clk 0:01:51.1]} 22. Bxf3 {[%clk
0:01:52.1]} 22... Rab8 {[%clk 0:01:48.8]} 23. Ne4 {[%clk 0:01:50.4]} 23... Qf5
{[%clk 0:01:42.5]} 24. Rac1 {[%clk 0:01:42.1]} 24... Nb3 {[%clk 0:01:34.5]} 25.
Rc4 {[%clk 0:01:36.8]} 25... Rfd8 {[%clk 0:01:28.4]} 26. h4 {[%clk 0:01:30.6]}
26... h6 {[%clk 0:01:24.5]} 27. Kg2 {[%clk 0:01:25]} 27... a5 {[%clk 0:01:23.9]}
28. Re1 {[%clk 0:01:16.7]} 28... Rb4 {[%clk 0:01:22]} 29. Rxb4 {[%clk
0:01:09.9]} 29... axb4 {[%clk 0:01:21.7]} 30. g4 {[%clk 0:01:05.5]} 30... Qa5
{[%clk 0:01:20.7]} 31. e3 {[%clk 0:01:03.5]} 31... Qxa4 {[%clk 0:01:19.3]} 32.
g5 {[%clk 0:00:57.6]} 32... Nd2 {[%clk 0:01:19.1]} 33. Rd1 {[%clk 0:00:57.5]}
33... Qxd1 {[%clk 0:01:13]} 34. Bxd1 {[%clk 0:00:56.4]} 34... Nxe4 {[%clk
0:01:13.2]} 35. Bf3 {[%clk 0:00:55.2]} 35... Nxf2 {[%clk 0:01:11.3]} 36. Kxf2
{[%clk 0:00:53.2]} 36... hxg5 {[%clk 0:01:12]} 37. hxg5 {[%clk 0:00:52.8]} 37...
Rd2+ {[%clk 0:01:11.2]} 38. Ke1 {[%clk 0:00:51.5]} 38... Rxb2 {[%clk 0:01:12.1]}
39. Be4 {[%clk 0:00:51.5]} 39... b3 {[%clk 0:01:12.1]} 40. Kd1 {[%clk 0:00:50]}
40... Kf8 {[%clk 0:01:07.8]} 41. Bd3 {[%clk 0:00:45.4]} 41... Rf2 {[%clk
0:01:07.5]} 42. Kc1 {[%clk 0:00:45.2]} 42... Rg2 {[%clk 0:01:06.5]} 43. g6
{[%clk 0:00:44.3]} 43... Rxg6 {[%clk 0:01:06.2]} 44. Kb2 {[%clk 0:00:40]} 44...
Rg3 {[%clk 0:01:05.3]} 0-1